fUST/lending_fUST_20250424
["ID","MTS","AMOUNT","RATE_DAILY","PERIOD"]
[358801485,1745453442841,-1492.8810589,0.0002475,2]
[358801486,1745453442851,-258.571623,0.0002475,7]
[358801487,1745453442861,-258.571623,0.0002475,7]
[358801488,1745453442872,-308.897921,0.0002475,7]
[358801489,1745453442882,-308.897921,0.0002475,7]
[358801490,1745453442893,-151.0,0.0002475,7]
[358801491,1745453442903,-158.134998,0.0002475,7]
[358801492,1745453442913,-158.134998,0.0002475,7]
[358801493,1745453442923,-151.0,0.0002475,7]
[358801494,1745453442934,-151.0,0.0002475,7]
[358801495,1745453442944,-989.212795,0.0002476,7]
[358801496,1745453442955,-989.212795,0.0002476,7]
[358801497,1745453442966,-151.0,0.0002476,7]
[358801498,1745453442978,-151.0,0.0002476,7]
[358801499,1745453442988,-151.0,0.0002476,7]
[358801500,1745453442998,-151.0,0.0002476,7]
[358801501,1745453443009,-1000.0,0.0002476,5]
[358801502,1745453443021,-151.0,0.0002476,7]
[358801503,1745453443031,-151.0,0.0002476,7]
[358801504,1745453443042,-167.632962,0.0002476,7]
[358801505,1745453443053,-167.632962,0.0002476,7]
[358801506,1745453443063,-151.0,0.0002476,7]
[358801507,1745453443075,-151.0,0.0002476,7]
[358801508,1745453443086,-151.0,0.0002476,7]
[358801509,1745453443096,-269.693174,0.0002476,7]
[358801510,1745453443106,-600.14834643,0.00024768,2]
[358801511,1745453443117,-839.95942076,0.00024771,3]
[358801512,1745453443128,-160.0,0.00024772,3]
[358801513,1745453443138,-160.0,0.00024772,3]
[358801514,1745453443149,-160.0,0.00024772,3]
[358801515,1745453443159,-160.0,0.00024772,3]
[358801516,1745453443170,-160.0,0.00024772,3]
[358801517,1745453443183,-839.95942076,0.00024772,3]
[358801518,1745453443194,-420.82143104,0.00024772,3]
[358801519,1745453443204,-152.830499,0.00024772,7]
[358801520,1745453443214,-151.0,0.00024772,7]
[358801521,1745453443224,-151.0,0.00024772,7]
[358801523,1745453443234,-151.0,0.00024772,7]
[358801524,1745453443243,-151.0,0.00024772,7]
[358801525,1745453443254,-151.0,0.00024772,7]
[358801526,1745453443264,-167.632962,0.00024772,7]
[358801527,1745453443274,-167.632962,0.00024772,7]
[358801528,1745453443284,-167.632962,0.00024772,7]
[358801529,1745453443299,-167.632962,0.00024772,7]
[358801530,1745453443310,-151.0,0.00024772,7]
[358801531,1745453443321,-151.0,0.00024772,7]
[358801532,1745453443331,-151.0,0.00024772,7]
[358801533,1745453443342,-151.0,0.00024772,7]
[358801534,1745453443352,-151.0,0.00024772,7]
[358801535,1745453443363,-151.0,0.00024772,7]
[358801536,1745453443375,-151.0,0.00024772,7]
[358801537,1745453443386,-151.0,0.00024772,7]
[358801538,1745453443396,-500.0,0.00024773,2]
[358801539,1745453443406,-500.0,0.00024773,2]
[358801540,1745453443416,-500.0,0.00024773,2]
[358801541,1745453443427,-500.0,0.00024773,2]
[358801542,1745453443437,-500.0,0.00024773,2]
[358801543,1745453443448,-500.0,0.00024773,2]
[358801544,1745453443459,-200.64770132,0.00024773,2]
[358801545,1745453443469,-500.0,0.00024773,2]
[358801546,1745453443479,-500.0,0.00024773,2]
[358801547,1745453443490,-500.0,0.00024773,2]
[358801548,1745453443502,-500.0,0.00024773,2]
[358801549,1745453443513,-500.0,0.00024773,2]
[358801550,1745453443524,-500.0,0.00024773,2]
[358801551,1745453443534,-253.446913,0.00024773,7]
[358801552,1745453443544,-253.446913,0.00024773,7]
[358801553,1745453443556,-1000.0,0.0002478,5]
[358801554,1745453443566,-800.0,0.00024788,2]
[358801555,1745453443579,-151.0,0.00024799,7]
[358801556,1745453443591,-276.510893,0.00024799,7]
[358801557,1745453443602,-151.0,0.00024799,7]
[358801558,1745453443613,-151.0,0.00024799,7]
[358801559,1745453443623,-151.0,0.00024799,7]
[358801560,1745453443633,-151.0,0.00024799,7]
[358801561,1745453443643,-253.446913,0.00024799,7]
[358801562,1745453443653,-52.34796451,0.00024799,7]
[358801563,1745453444073,-201.09894849,0.00024799,7]
[358801564,1745453444084,-253.446913,0.00024799,7]
[358801565,1745453444094,-253.446913,0.00024799,7]
[358801566,1745453444104,-308.897921,0.00024799,7]
[358801567,1745453444115,-308.897921,0.00024799,7]
[358801568,1745453444125,-308.897921,0.00024799,7]
[358801569,1745453444135,-308.897921,0.00024799,7]
[358801570,1745453444145,-151.0,0.00024799,7]
[358801571,1745453444156,-151.0,0.00024799,7]
[358801572,1745453444166,-160.0,0.00024799,7]
[358801573,1745453444176,-158.134998,0.00024799,7]
[358801574,1745453444188,-158.134998,0.00024799,7]
[358801575,1745453444198,-149.31929254,0.00024799,7]
[358801576,1745453444300,-1023.96955576,0.00020204,2]
[358801577,1745453444309,-8.81570546,0.00024799,7]
[358801578,1745453444319,-158.134998,0.00024799,7]
[358801579,1745453444329,-151.0,0.00024799,7]
[358801580,1745453444338,-160.0,0.00024799,7]
[358801581,1745453444349,-151.0,0.00024799,7]
[358801582,1745453444360,-151.0,0.00024799,7]
[358801583,1745453444371,-151.0,0.00024799,7]
[358801584,1745453444383,-151.0,0.00024799,7]
[358801585,1745453444394,-151.0,0.00024799,7]
[358801586,1745453444403,-839.95942076,0.00024799,7]
[358801587,1745453444415,-160.0,0.00024799,3]
[358801588,1745453444426,-802.57500167,0.00024799,3]
[358801589,1745453444438,-3728.477722,0.00024799,3]
[358801590,1745453444451,-3239.21286451,0.00024799,3]
[358801594,1745453445986,-799.99939,0.00024799,3]
[358801596,1745453445999,-3995.05913067,0.00024799,3]
[358801598,1745453446009,-151.0,0.000248,7]
[358801599,1745453446019,-382.667448,0.000248,7]
[358801600,1745453446029,-382.667448,0.000248,7]
[358801601,1745453446039,-152.69464,0.000248,7]
[358801602,1745453446048,-152.69464,0.000248,7]
[358801603,1745453446059,-160.104568,0.000248,7]
[358801604,1745453446069,-151.0,0.000248,7]
[358801605,1745453446079,-160.104568,0.000248,7]
[358801606,1745453446089,-182.384857,0.000248,7]
[358801607,1745453446099,-182.384857,0.000248,7]
[358801608,1745453446108,-151.0,0.000248,7]
[358801610,1745453446118,-151.0,0.000248,7]
[358801611,1745453446127,-172.688586,0.000248,7]
[358801612,1745453446137,-151.0,0.000248,7]
[358801613,1745453446146,-151.0,0.000248,7]
[358801614,1745453446156,-654.347247,0.000248,7]
[358801615,1745453446165,-151.0,0.000248,7]
[358801616,1745453446175,-151.0,0.000248,7]
[358801617,1745453446185,-689.236349,0.000248,2]
[358801618,1745453446195,-689.236349,0.000248,2]
[358801619,1745453446205,-689.236349,0.000248,2]
[358801620,1745453446215,-689.236349,0.000248,2]
[358801621,1745453446224,-151.0,0.000248,7]
[358801622,1745453446234,-162.693359,0.000248,7]
[358801623,1745453446243,-162.693359,0.000248,7]
[358801624,1745453446254,-151.0,0.000248,7]
[358801625,1745453446264,-253.446913,0.000248,7]
[358801626,1745453446273,-253.446913,0.000248,7]
[358801627,1745453446283,-1000.0,0.000248,5]
[358801628,1745453446293,-308.897921,0.000248,7]
[358801629,1745453446302,-308.897921,0.000248,7]
[358801630,1745453446312,-153.731829,0.000248,7]
[358801631,1745453446322,-151.0,0.000248,7]
[358801632,1745453446332,-151.0,0.000248,7]
[358801633,1745453446341,-250.0,0.000248,30]
[358801634,1745453446351,-158.134998,0.000248,7]
[358801635,1745453446361,-158.134998,0.000248,7]
[358801636,1745453446371,-600.14834643,0.000248,2]
[358801637,1745453446382,-167.632962,0.000248,7]
[358801638,1745453446391,-167.632962,0.000248,7]
[358801639,1745453446401,-167.632962,0.000248,7]
[358801640,1745453446410,-167.632962,0.000248,7]
[358801641,1745453446420,-151.0,0.000248,7]
[358801642,1745453446429,-151.0,0.000248,7]
[358801643,1745453446439,-151.0,0.000248,7]
[358801644,1745453446449,-151.0,0.000248,7]
[358801645,1745453446459,-151.0,0.000248,7]
[358801646,1745453446469,-151.0,0.000248,7]
[358801647,1745453446479,-20931.37129174,0.000248,2]
[358801648,1745453446492,-13015.94703666,0.000248,2]
[358801649,1745453446502,-151.0,0.000248,7]
[358801650,1745453446513,-151.0,0.000248,7]
[358801651,1745453446524,-800.0,0.00024822,2]
[358801652,1745453446535,-475.55701438,0.00024826,2]
[358801653,1745453446550,-6313.9066513,0.00024826,2]
[358801654,1745453446561,-800.0,0.00024836,2]
[358801655,1745453446571,-800.0,0.00024863,2]
[358801656,1745453446583,-500.0,0.00024873,2]
[358801657,1745453446594,-500.0,0.00024873,2]
[358801658,1745453446605,-500.0,0.00024873,2]
[358801659,1745453446615,-404.21153919,0.00024873,2]
[358801660,1745453446627,-95.78846081,0.00024873,2]
[358801661,1745453446638,-500.0,0.00024873,2]
[358801662,1745453446648,-351.88153919,0.00024873,2]
[358801663,1745453446660,-148.11846081,0.00024873,2]
[358801664,1745453446670,-498.90002151,0.00024873,2]
[358801665,1745453446683,-1.09997849,0.00024873,2]
[358801666,1745453446694,-500.0,0.00024873,2]
[358801667,1745453446704,-500.0,0.00024873,2]
[358801668,1745453446714,-500.0,0.00024873,2]
[358801669,1745453446725,-500.0,0.00024873,2]
[358801670,1745453446737,-500.0,0.00024873,2]
[358801671,1745453446747,-399.99224483,0.00024873,2]
[358801672,1745453446758,-500.0,0.00024873,2]
[358801673,1745453446768,-151.0,0.00024873,7]
[358801674,1745453446778,-151.0,0.00024873,7]
[358801675,1745453446789,-151.0,0.00024873,7]
[358801676,1745453446799,-151.0,0.00024873,2]
[358801677,1745453446809,-151.0,0.00024873,2]
[358801678,1745453446819,-151.0,0.00024873,7]
[358801679,1745453446828,-151.0,0.00024873,7]
[358801680,1745453446838,-252.672426,0.00024873,7]
[358801681,1745453446848,-151.0,0.00024873,7]
[358801682,1745453446858,-153.188058,0.00024873,7]
[358801683,1745453446869,-153.188058,0.00024873,7]
[358801684,1745453446879,-258.571623,0.00024873,7]
[358801685,1745453446888,-258.571623,0.00024873,7]
[358801686,1745453446898,-152.69464,0.00024873,7]
[358801687,1745453446908,-152.69464,0.00024873,7]
[358801688,1745453446917,-160.104568,0.00024873,7]
[358801689,1745453446927,-151.0,0.00024873,7]
[358801690,1745453446936,-160.104568,0.00024873,7]
[358801691,1745453446947,-182.384857,0.00024873,7]
[358801692,1745453446957,-182.384857,0.00024873,7]
[358801693,1745453446967,-989.212795,0.00024873,7]
[358801694,1745453446978,-989.212795,0.00024873,7]
[358801695,1745453446989,-193.135109,0.00024873,7]
[358801696,1745453446999,-654.347247,0.00024873,7]
[358801697,1745453447008,-654.347247,0.00024873,7]
[358801698,1745453447019,-162.693359,0.00024873,7]
[358801699,1745453447029,-162.693359,0.00024873,7]
[358801700,1745453447038,-151.0,0.00024873,7]
[358801701,1745453447048,-151.0,0.00024873,7]
[358801702,1745453447057,-167.632962,0.00024873,7]
[358801703,1745453447066,-167.632962,0.00024873,7]
[358801704,1745453447077,-151.0,0.00024873,7]
[358801705,1745453447087,-151.0,0.00024873,7]
[358801706,1745453447097,-279.297334,0.00024873,7]
[358801707,1745453447107,-151.0,0.00024873,7]
[358801708,1745453447116,-308.897921,0.0002488,7]
[358801709,1745453447127,-308.897921,0.0002488,7]
[358801710,1745453447136,-158.134998,0.0002488,7]
[358801711,1745453447146,-158.134998,0.0002488,7]
[358801712,1745453447155,-151.0,0.0002488,7]
[358801713,1745453447165,-151.0,0.0002488,7]
[358801714,1745453447175,-382.667448,0.0002489,7]
[358801715,1745453447184,-382.667448,0.0002489,7]
[358801716,1745453447194,-258.571623,0.0002489,7]
[358801717,1745453447203,-258.571623,0.0002489,7]
[358801718,1745453447212,-989.212795,0.0002489,7]
[358801719,1745453447222,-989.212795,0.0002489,7]
[358801720,1745453447231,-287.023671,0.0002489,7]
[358801721,1745453447240,-689.236349,0.0002489,2]
[358801722,1745453447250,-689.236349,0.0002489,2]
[358801723,1745453447259,-221.176438,0.0002489,7]
[358801724,1745453447269,-151.0,0.0002489,7]
[358801725,1745453447278,-151.0,0.0002489,7]
[358801726,1745453447287,-253.446913,0.0002489,7]
[358801727,1745453447297,-253.446913,0.0002489,7]
[358801728,1745453447307,-253.446913,0.0002489,7]
[358801729,1745453447316,-253.446913,0.0002489,7]
[358801730,1745453447325,-800.0,0.00024894,2]
[358801731,1745453447335,-151.0,0.000249,7]
[358801732,1745453447345,-156.655618,0.000249,7]
[358801733,1745453447356,-151.0,0.000249,2]
[358801734,1745453447366,-218.150039,0.000249,2]
[358801735,1745453447375,-248.633166,0.000249,7]
[358801736,1745453447385,-151.0,0.000249,7]
[358801737,1745453447395,-382.667448,0.000249,7]
[358801738,1745453447404,-382.667448,0.000249,7]
[358801739,1745453447414,-151.0,0.000249,7]
[358801740,1745453447424,-151.0,0.000249,7]
[358801741,1745453447435,-153.188058,0.000249,7]
[358801742,1745453447444,-153.188058,0.000249,7]
[358801743,1745453447454,-258.571623,0.000249,7]
[358801744,1745453447464,-258.571623,0.000249,7]
[358801745,1745453447474,-152.69464,0.000249,7]
[358801746,1745453447484,-152.69464,0.000249,7]
[358801747,1745453447493,-1000.0,0.000249,14]
[358801748,1745453447503,-160.104568,0.000249,7]
[358801749,1745453447513,-160.104568,0.000249,7]
[358801750,1745453447674,-182.384857,0.000249,7]
[358801751,1745453447685,-182.384857,0.000249,7]
[358801752,1745453447695,-989.212795,0.000249,7]
[358801753,1745453447705,-989.212795,0.000249,7]
[358801754,1745453447715,-151.0,0.000249,7]
[358801755,1745453447725,-151.0,0.000249,7]
[358801756,1745453447735,-151.0,0.000249,7]
[358801757,1745453447745,-151.0,0.000249,7]
[358801758,1745453447755,-654.347247,0.000249,7]
[358801759,1745453447766,-151.0,0.000249,7]
[358801760,1745453447776,-151.0,0.000249,7]
[358801761,1745453447786,-654.347247,0.000249,7]
[358801762,1745453447795,-689.236349,0.000249,2]
[358801763,1745453447805,-689.236349,0.000249,2]
[358801764,1745453447815,-162.693359,0.000249,7]
[358801765,1745453447825,-162.693359,0.000249,7]
[358801766,1745453447836,-151.0,0.000249,7]
[358801767,1745453447846,-253.446913,0.000249,7]
[358801768,1745453447856,-253.446913,0.000249,7]
[358801769,1745453447865,-308.897921,0.000249,7]
[358801770,1745453447875,-285.70043423,0.000249,7]
[358801771,1745453447888,-23.19748677,0.000249,7]
[358801772,1745453447898,-151.0,0.000249,7]
[358801773,1745453447908,-158.134998,0.000249,7]
[358801774,1745453447918,-158.134998,0.000249,7]
[358801775,1745453447927,-151.0,0.000249,7]
[358801776,1745453447937,-151.0,0.000249,7]
[358801777,1745453447947,-167.632962,0.000249,7]
[358801778,1745453447957,-167.632962,0.000249,7]
[358801779,1745453447967,-167.632962,0.000249,7]
[358801780,1745453447977,-167.632962,0.000249,7]
[358801781,1745453447986,-151.0,0.000249,7]
[358801782,1745453447996,-203.896575,0.000249,7]
[358801783,1745453448005,-96.34311769,0.000249,7]
[358801784,1745453448017,-54.65688231,0.000249,7]
[358801785,1745453448027,-151.0,0.000249,7]
[358801786,1745453448037,-151.0,0.000249,7]
[358801787,1745453448048,-151.0,0.000249,7]
[358801788,1745453448057,-29696.56528538,0.000249,2]
[358801789,1745453448070,-654.60364045,0.000249,2]
[358801790,1745453448081,-7199.64684362,0.000249,2]
[358801791,1745453448092,-500.0,0.000249,2]
[358801792,1745453448104,-6424.48046282,0.000249,2]
[358801793,1745453448115,-463.3,0.000249,2]
[358801929,1745454632422,-250.0,0.00018536,2]
[358801930,1745454632432,-22.07162368,0.00018567,2]
[358801931,1745454632444,-1177.92837632,0.00018567,2]
[358801932,1745454632454,-500.0,0.00018568,2]
[358801933,1745454632464,-500.0,0.00018568,2]
[358801934,1745454632474,-500.0,0.00018568,2]
[358801935,1745454632484,-500.0,0.00018568,2]
[358801936,1745454632494,-500.0,0.00018568,2]
[358801937,1745454632503,-500.0,0.00018568,2]
[358801938,1745454632514,-500.0,0.00018568,2]
[358801939,1745454632523,-500.0,0.00018568,2]
[358801940,1745454632533,-500.0,0.00018568,2]
[358801941,1745454632543,-500.0,0.00018568,2]
[358801942,1745454632553,-216.39761594,0.00018568,2]
[358801943,1745454632565,-283.60238406,0.00018568,2]
[358801944,1745454632574,-500.0,0.00018568,2]
[358801945,1745454632584,-500.0,0.00018568,2]
[358801946,1745454632594,-500.0,0.00018568,2]
[358801947,1745454632604,-409.1410476,0.00018568,2]
[358801970,1745454638041,-90.8589524,0.00018568,2]
[358801972,1745454638052,-200.0,0.00018568,2]
[358801974,1745454638065,-500.0,0.00018568,2]
[358801976,1745454638085,-500.0,0.00018568,2]
[358801978,1745454638098,-500.0,0.00018568,2]
[358801981,1745454638107,-500.0,0.00018568,2]
[358801982,1745454638117,-500.0,0.00018568,2]
[358801984,1745454638127,-500.0,0.00018568,2]
[358801987,1745454638142,-198.98824541,0.00018568,2]
[358801989,1745454638156,-318.77114913,0.00018568,2]
[358801991,1745454638166,-500.0,0.00018568,2]
[358801993,1745454638177,-500.0,0.00018568,2]
[358801995,1745454638187,-500.0,0.00018568,2]
[358801997,1745454638198,-500.0,0.00018568,2]
[358801999,1745454638208,-500.0,0.00018568,2]
[358802001,1745454638218,-500.0,0.00018568,2]
[358802003,1745454638228,-198.04176541,0.00018568,2]
[358802005,1745454638238,-500.0,0.00018568,2]
[358802007,1745454638248,-66.55119609,0.00018568,2]
[358802089,1745454640421,-433.44880391,0.00018568,2]
[358802090,1745454640431,-137.53714152,0.00018568,2]
[358802091,1745454640444,-362.46285848,0.00018568,2]
[358802092,1745454640453,-452.76775653,0.00018568,2]
[358802093,1745454640465,-47.23224347,0.00018568,2]
[358802094,1745454640475,-500.0,0.00018568,2]
[358802095,1745454640486,-500.0,0.00018568,2]
[358802096,1745454640494,-304.68970643,0.00018568,2]
[358802123,1745454643429,-195.31029357,0.00018568,2]
[358802124,1745454643439,-149.64298451,0.00018568,2]
[358802125,1745454643451,-350.35701549,0.00018568,2]
[358802126,1745454643460,-500.0,0.00018568,2]
[358802127,1745454643470,-464.37818897,0.00018568,2]
[358802128,1745454643482,-35.62181103,0.00018568,2]
[358802129,1745454643492,-500.0,0.00018568,2]
[358802130,1745454643501,-500.0,0.00018568,2]
[358802131,1745454643511,-207.96519717,0.00018568,2]
[358802132,1745454643523,-292.03480283,0.00018568,2]
[358802133,1745454643532,-500.0,0.00018568,2]
[358802134,1745454643542,-500.0,0.00018568,2]
[358802135,1745454643552,-500.0,0.00018568,2]
[358802136,1745454643561,-500.0,0.00018568,2]
[358802137,1745454643571,-500.0,0.00018568,2]
[358802138,1745454643581,-500.0,0.00018568,2]
[358802139,1745454643591,-500.0,0.00018568,2]
[358802140,1745454643600,-500.0,0.00018568,2]
[358802141,1745454643609,-500.0,0.00018568,2]
[358802142,1745454643620,-500.0,0.00018568,2]
[358802143,1745454643629,-500.0,0.00018568,2]
[358802144,1745454643638,-500.0,0.00018568,2]
[358802145,1745454643648,-500.0,0.00018568,2]
[358802146,1745454643658,-363.23409383,0.00018568,2]
[358802147,1745454643667,-500.0,0.00018568,2]
[358802148,1745454643677,-500.0,0.00018568,2]
[358802149,1745454643687,-500.0,0.00018568,2]
[358802150,1745454643696,-500.0,0.00018568,2]
[358802151,1745454643706,-500.0,0.00018568,2]
[358802152,1745454643716,-500.0,0.00018568,2]
[358802153,1745454643725,-500.0,0.00018568,2]
[358802154,1745454643924,-500.0,0.00018568,2]
[358802155,1745454643936,-500.0,0.00018568,2]
[358802156,1745454643946,-500.0,0.00018568,2]
[358802157,1745454643955,-500.0,0.00018568,2]
[358802158,1745454643965,-500.0,0.00018568,2]
[358802159,1745454643975,-500.0,0.00018568,2]
[358802160,1745454643985,-500.0,0.00018568,2]
[358802161,1745454643994,-500.0,0.00018568,2]
[358802162,1745454644004,-500.0,0.00018568,2]
[358802163,1745454644013,-500.0,0.00018568,2]
[358802164,1745454644023,-500.0,0.00018568,2]
[358802165,1745454644033,-500.0,0.00018568,2]
[358802166,1745454644042,-544.61121892,0.00018568,2]
[358802167,1745454644053,-500.0,0.00018568,2]
[358802168,1745454644062,-500.0,0.00018568,2]
[358802169,1745454644075,-500.0,0.00018568,2]
[358802170,1745454644084,-500.0,0.00018568,2]
[358802171,1745454644095,-500.0,0.00018568,2]
[358802172,1745454644105,-500.0,0.00018568,2]
[358802173,1745454644115,-500.0,0.00018568,2]
[358802174,1745454644124,-500.0,0.00018568,2]
[358802175,1745454644135,-500.0,0.00018568,2]
[358802176,1745454644146,-2387.23725421,0.00018568,2]
[358802188,1745454646078,-468.078347,0.00018568,2]
[358802189,1745454646136,-8312.6561872,0.00018568,2]
[358802190,1745454646146,-24900.0,0.00018569,2]
[358802191,1745454646156,-160.323252,0.00019054,2]
[358802192,1745454646166,-1000.0,0.00019079,2]
[358802193,1745454646176,-3383.1704221,0.00019087,2]
[358802194,1745454646186,-160.323252,0.00019149,2]
[358802195,1745454646196,-326.00457082,0.000199,2]
[358802196,1745454646206,-517.14100018,0.0002007,2]
[358802197,1745454646215,-500.0,0.0002007,2]
[358802198,1745454646225,-158.0,0.00020073,2]
[358802199,1745454646235,-500.0,0.00020073,2]
[358802200,1745454646245,-500.0,0.00020073,2]
[358802201,1745454646254,-160.0,0.00020213,2]
[358802202,1745454646264,-160.0,0.00020213,2]
[358802203,1745454646276,-160.0,0.00020213,2]
[358802204,1745454646286,-160.0,0.00020213,2]
[358802205,1745454646295,-420.82143104,0.00020213,2]
[358802206,1745454646307,-117.01273491,0.00020213,2]
[358802207,1745454646319,-709.82680776,0.00020213,2]
[358802208,1745454646331,-13.11987809,0.00020213,2]
[358802209,1745454646341,-896.52377165,0.00020213,2]
[358802220,1745454841695,-152.0,0.00018368,2]
[358802228,1745455072834,-2864.0,0.00042336,31]
[358802229,1745455072864,-4424.0,0.00042336,31]
[358802230,1745455072889,-1809.0,0.00042336,31]
[358802231,1745455072914,-2787.0,0.00042336,31]
[358802232,1745455072939,-716.0,0.00042336,31]
[358802233,1745455072965,-1432.0,0.00042336,31]
[358802234,1745455072990,-179.0,0.00042336,31]
[358802235,1745455073014,-358.0,0.00042336,31]
[358802236,1745455073044,-499.999999,0.00042336,120]
[358802237,1745455073069,-2000.0,0.00042336,120]
[358802238,1745455073096,-500.0,0.00042336,60]
[358802239,1745455073122,-585.77378952,0.00042336,60]
[358802240,1745455073147,-153.0,0.00042336,31]
[358802241,1745455073172,-276.0,0.00042336,31]
[358802242,1745455073196,-425.0,0.00042336,31]
[358802243,1745455073220,-174.0,0.00042336,31]
[358802244,1745455073246,-268.0,0.00042336,31]
[358802245,1745455073270,-818.599999,0.00042336,30]
[358802246,1745455073295,-2000.0,0.00042336,30]
[358802247,1745455073321,-2000.0,0.00042336,30]
[358802248,1745455073345,-936.199999,0.00042336,30]
[358802249,1745455073370,-2000.0,0.00042336,30]
[358802250,1745455073395,-2000.0,0.00042336,30]
[358802251,1745455073420,-936.199999,0.00042336,30]
[358802252,1745455073446,-2000.0,0.00042336,30]
[358802253,1745455073470,-2000.0,0.00042336,30]
[358802254,1745455073672,-936.199999,0.00042336,30]
[358802255,1745455073699,-11113.86952469,0.00042336,45]
[358802256,1745455073724,-612.0902998,0.00042336,30]
[358802257,1745455073748,-847.33977811,0.00042336,120]
[358802258,1745455073772,-226.35430175,0.00042336,60]
[358802259,1745455073796,-1175.19941328,0.00042336,30]
[358802260,1745455073820,-1405.37068589,0.00042336,32]
[358802261,1745455073845,-260.65456478,0.00042336,120]
[358802262,1745455073870,-258.60221328,0.00042336,120]
[358802263,1745455073896,-498.999985,0.00042336,120]
[358802264,1745455073921,-319.90509585,0.00042336,60]
[358802265,1745455073946,-909.74723984,0.00042336,120]
[358802266,1745455073970,-1030.24913317,0.00042336,120]
[358802267,1745455074004,-1168.68709394,0.00042336,30]
[358802268,1745455074037,-577.11253089,0.00042336,120]
[358802269,1745455074065,-729.71344753,0.00042336,120]
[358802270,1745455074092,-683.69616924,0.00042336,120]
[358802271,1745455074120,-663.50715208,0.00042336,31]
[358802272,1745455074147,-240.82074905,0.00042336,120]
[358802273,1745455074174,-936.0968377,0.00042336,120]
[358802274,1745455074202,-1654.19542785,0.00042336,60]
[358802275,1745455074230,-2000.0,0.00042336,120]
[358802276,1745455074260,-242.34502875,0.00042336,30]
[358802277,1745455074288,-1093.23726805,0.00042336,120]
[358802278,1745455074314,-991.43369725,0.00042336,30]
[358802279,1745455074340,-155.96951375,0.00042336,30]
[358802280,1745455074366,-1279.37781362,0.00042336,60]
[358802281,1745455074392,-473.63216909,0.00042336,120]
[358802282,1745455074418,-167.26232602,0.00042336,120]
[358802283,1745455074444,-598.536053,0.00042336,120]
[358802284,1745455074469,-1000.75188057,0.00042336,120]
[358802285,1745455074496,-151.36841945,0.00042336,30]
[358802286,1745455074522,-443.26149972,0.00042336,120]
[358802287,1745455074549,-1004.9471765,0.00042336,120]
[358802288,1745455074574,-170.6303678,0.00042336,120]
[358802289,1745455074599,-214.46151376,0.00042336,120]
[358802290,1745455074624,-423.70182438,0.00042336,120]
[358802291,1745455074649,-1959.58604649,0.00042336,120]
[358802292,1745455074675,-314.84781126,0.00042336,120]
[358802293,1745455074700,-504.5919149,0.00042336,30]
[358802294,1745455074732,-202.39024237,0.00042336,120]
[358802295,1745455074758,-855.94623241,0.00042336,120]
[358802296,1745455074787,-1083.52887004,0.00042336,120]
[358802297,1745455074814,-2202.97430908,0.00042336,120]
[358802298,1745455074840,-1315.896529,0.00042336,60]
[358802299,1745455074866,-2754.62126348,0.00042336,30]
[358802300,1745455074892,-1258.999999,0.00042336,30]
[358802301,1745455074919,-500.0,0.00042336,60]
[358802302,1745455074946,-566.23833879,0.00042336,60]